[Event "FIDE Womens Grand Prix-I 2022-23"]
[Site "Nur-Sultan"]
[Date "2022.09.26"]
[Round "8.5"]
[White "Kashlinskaya, Alina"]
[Black "Wagner, Dinara"]
[Result "0-1"]
[ECO "E48"]
[WhiteElo "2491"]
[BlackElo "2358"]
[Annotator "TA"]
[PlyCount "104"]
[EventDate "2022.09.15"]
[EventType "tourn"]
[EventCountry "KAZ"]
[SourceTitle "playchess.com"]
[Source "ChessBase"]
[SourceQuality "1"]
[TimeControl "40/5400+30:1800+30"]

{[%evp 15,104,15,14,16,6,-12,0,0,0,0,4,0,0,0,6,0,2,5,7,4,5,0,0,0,0,0,7,0,0,-24,-14,-14,-27,-22,-9,-39,-19,-18,-16,-115,-108,-118,-119,-118,-126,-118,-137,-133,-125,-120,-131,-120,-87,-104,-81,-97,-100,-99,-106,-122,-126,-253,-264,-407,-374,-402,-379,-451,-390,-387,-389,-374,-311,-470,-471,-469,-427,-472,-472,-1172,-1108,-1151,-1113,-1047,-996,-1221,-919,-1416,-1329,-29990,-29991]} 1. d4 {[%emt 0:00:03]} Nf6 {[%emt 0:00:04]} 2. c4 {[%emt 0:00:07]} e6 {[%emt 0:00:05]} 3. Nc3 {[%emt 0:00:05]} Bb4 {[%emt 0:00:04]} 4. e3 {[%emt 0:00:11]} O-O {[%emt 0:00:09]} 5. Bd3 {[%emt 0:00:07]} c5 {[%emt 0:00:18]} 6. Nge2 {[%emt 0:00:26]} cxd4 {[%emt 0:00:15]} 7. exd4 {[%emt 0:00:05]} d5 {[%emt 0:00:06]} 8. cxd5 {[%emt 0:00:15]} Nxd5 {[%emt 0:00:23]} 9. a3 {[%emt 0:00:13] E48: Nimzo-Indian: Rubinstein: 5 Bd3 d5 including 6 Ne2, but excluding 6 a3.} Bd6 {[%emt 0:00:24]} 10. Bc2 {[%emt 0:00:12]} Nc6 {[%emt 0:00:39]} 11. Qd3 {[%emt 0:00:37][%csl Gc2][%cal Rd3h7] The position is equal.} g6 {[%emt 0:00:06] Active counter play!} 12. Ne4 {[%emt 0:00:20]} e5 {[%emt 0:00:39] [#]} 13. Nxd6 $146 {[%emt 0:01:00]} ({Predecessor:} 13. Bb3 Nf4 14. Bxf4 exf4 15. O-O Bf5 16. Qf3 Bxe4 17. Qxe4 Qf6 18. Rad1 Rad8 19. Ba4 {1-0 (51) Vaisser,A (2540)-Gola,M (2320) Nimes 1991}) 13... Qxd6 {[%emt 0:00:05]} 14. Qg3 {[%emt 0:00:29]} Qc7 {[%emt 0:00:19]} 15. dxe5 {[%emt 0:01:37]} Re8 {[%emt 0:00:15]} 16. O-O {[%emt 0:02:00]} Qxe5 {[%emt 0:00:21]} (16... Rxe5 {is more complex.} 17. Nf4 Nd4 18. Bd3 Qb6) 17. Qxe5 {[%emt 0:02:43]} Rxe5 {[%emt 0:00:40]} 18. Ng3 {[%emt 0:08:46]} Nd4 {[%emt 0:00:59]} 19. Ba4 {[%emt 0:07:26]} b5 {[%emt 0:37:26]} 20. Bd1 {[%emt 0:00:43]} Bb7 {[%emt 0:03:29]} 21. b4 {[%emt 0:07:03] Black must now prevent Bb2.} (21. f3 {seems wilder.} f5 22. Kf2 Rc8 23. Bd2) 21... Rd8 {[%emt 0:02:29]} 22. Bd2 {[%emt 0:09:33]} ({Don't play} 22. Bb2 Nf4 23. f3 Re6 $15) 22... f5 {[%emt 0:06:36]} 23. Re1 {[%emt 0:04:13]} Rxe1+ {[%emt 0:08:58]} 24. Bxe1 {[%emt 0:00:19]} Re8 {[%emt 0:00:29]} 25. Kf1 {[%emt 0:09:35]} f4 {[%emt 0:01:45]} (25... Nf4 $5 {[%cal Rb7g2]} 26. f3 Bd5 $15) 26. Ne2 {[%emt 0:04:03]} f3 $40 {[%emt 0:01:12][%mdl 128] Black mounts an attack.} 27. gxf3 {[%emt 0:00:56]} (27. Nxd4 $11 fxg2+ 28. Kxg2 Rxe1 29. Nf3) 27... Nxf3 $17 {[%emt 0:01:44] aiming for ...Bc8. Pair of Knights!} 28. Bb3 {[%emt 0:00:57]} Kf8 {[%emt 0:03:33]} 29. h3 {[%emt 0:11:14] [#]} Bc8 $1 {[%emt 0:09:46][%cal Rc8h3]} 30. Ng1 {[%emt 0:00:49]} Rxe1+ {[%emt 0:00:23]} 31. Rxe1 {[%emt 0:00:04]} Nd2+ {[%emt 0:00:02]} 32. Kg2 {[%emt 0:04:57]} Nxb3 {[%emt 0:00:20]} 33. Nf3 {[%emt 0:00:17] Against Nd4} Bb7 {[%emt 0:14:36]} 34. Kg3 {[%emt 0:01:41]} Nf6 {[%emt 0:01:29]} 35. Re3 {[%emt 0:05:40]} Bd5 {[%emt 0:01:27]} 36. Kf4 {[%emt 0:03:49]} Bc4 {[%emt 0:01:00] ...Nd5+ is the strong threat.} 37. Kg5 {[%emt 0:00:47]} Nd5 {[%emt 0:00:33]} 38. Re6 {[%emt 0:05:23] [#] Loses the game.} (38. Re1 $17 {keeps fighting.}) 38... Nxb4 $1 $19 {[%emt 0:02:01]} 39. Rd6 {[%emt 0:00:16]} (39. Re4 {might work better.} Nd5 40. Re6) 39... Ke7 {[%emt 0:00:46]} 40. Rd1 {[%emt 0:01:16]} Nc2 {[%emt 0:01:02]} 41. Kh6 {[%emt 0:31:07]} Nxa3 {[%emt 0:09:36]} 42. Kxh7 {[%emt 0:00:00]} Nc5 {[%emt 0:13:52] Hoping for ...b4.} 43. Kxg6 {[%emt 0:00:00]} Bf7+ {[%emt 0:02:57]} 44. Kg7 {[%emt 0:00:00]} (44. Kf5 $142 b4 45. Rc1) 44... Ne6+ {[%emt 0:03:11]} 45. Kh6 {[%emt 0:00:00]} b4 {[%emt 0:00:55]} 46. Nd2 {[%emt 0:00:00]} a5 {[%emt 0:00:38][%cal Ba7a5,Ba5a4,Ba4a3][%mdl 32] Threatens to win with ...Nc2.} 47. Re1 {[%emt 0:00:00]} (47. Rc1 $142) 47... Nc2 {[%emt 0:01:13]} 48. Re5 {[%emt 0:00:00]} a4 {[%emt 0:00:52]} 49. Ra5 {[%emt 0:00:00]} a3 {[%emt 0:00:08]} 50. Ra7+ {[%emt 0:01:10]} Kf6 {[%emt 0:00:15] And now ...Nc5 would win.} 51. Ra5 {[%emt 0:02:23]} Bg6 {[%emt 0:03:41] ( -> ...Ncd4)} 52. h4 {[%emt 0:01:30]} Ncd4 {[%emt 0:00:08] Weighted Error Value: White=0.63/Black=0.07 (flawless)} 0-1

[Event "FIDE Womens Grand Prix-I 2022-23"]
[Site "Nur-Sultan"]
[Date "2022.09.26"]
[Round "8.6"]
[White "Assaubayeva, Bibisara"]
[Black "Tan, Zhongyi"]
[Result "0-1"]
[ECO "D35"]
[WhiteElo "2443"]
[BlackElo "2525"]
[Annotator "TA"]
[PlyCount "78"]
[EventDate "2022.09.15"]
[EventType "tourn"]
[EventCountry "KAZ"]
[SourceTitle "playchess.com"]
[Source "ChessBase"]
[SourceQuality "1"]
[TimeControl "40/5400+30:1800+30"]

{[%evp 18,78,35,33,35,21,33,33,51,52,58,60,64,54,63,48,53,0,0,0,0,0,0,0,0,0,0,0,0,0,0,0,0,0,0,0,0,0,-6,-54,-56,-107,-58,-164,-178,-162,0,0,0,0,-8,-556,-552,-548,-485,-550,-532,-499,-533,-516,-460,-1032,-892]} 1. d4 {[%emt 0:00:04]} Nf6 {[%emt 0:00:05]} 2. c4 {[%emt 0:00:04]} e6 {[%emt 0:00:04]} 3. Nc3 {[%emt 0:00:04]} d5 {[%emt 0:00:47]} 4. cxd5 {[%emt 0:00:11]} exd5 {[%emt 0:00:08]} 5. Bg5 {[%emt 0:00:07]} c6 {[%emt 0:00:14]} 6. e3 {[%emt 0:00:05]} Bf5 {[%emt 0:00:59]} 7. Qf3 {[%emt 0:00:06]} Bg6 {[%emt 0:00:05]} 8. Bxf6 {[%emt 0:00:06]} Qxf6 {[%emt 0:00:03]} 9. Qxf6 {[%emt 0:00:07]} gxf6 {[%emt 0:00:04]} 10. Nf3 {[%emt 0:00:08]} Nd7 {[%emt 0:00:10] D35: Queen's Gambit Declined: Exchange Variation.} 11. Nh4 {[%emt 0:00:08]} Be7 {[%emt 0:01:03]} 12. Ne2 {[%emt 0:00:16] now scores much better than the old 12.g3.} f5 {[%emt 0:00:27] White is slightly better.} 13. g3 {[%emt 0:00:16]} Bxh4 {[%emt 0:00:27]} 14. gxh4 {[%emt 0:00:03]} Nf6 {[%emt 0:00:25]} 15. Rg1 {[%emt 0:01:51]} Ke7 {[%emt 0:01:33]} 16. Bh3 {[%emt 0:03:25]} Rhg8 {[%emt 0:12:11]} 17. Nf4 {[%emt 0:02:59]} (17. Rg3 $14) 17... Nh5 $11 {[%emt 0:01:52]} 18. Nxh5 {[%emt 0:11:05]} Bxh5 {[%emt 0:00:07] [#]} 19. Rg3 $146 {[%emt 0:01:54]} ({Predecessor:} 19. Kd2 Bg4 20. Bf1 Ke6 21. Bd3 Rg6 22. Rg3 Rag8 23. b4 f4 24. exf4 Bf5 25. Re1+ {1-0 (66) Wagner,D (2581)-Nilsen,T (2146) Chess.com INT 2020}) 19... Kf6 {[%emt 0:00:17]} 20. Kd2 {[%emt 0:00:31]} Rg6 {[%emt 0:01:10]} 21. Rag1 {[%emt 0:07:31]} Rh6 {[%emt 0:09:46]} 22. Rg8 {[%emt 0:11:34]} Rxg8 {[%emt 0:00:07]} 23. Rxg8 {[%emt 0:00:05][%mdl 4096] Endgame KRB-KRB} Bf3 {[%emt 0:01:11]} 24. Bf1 $1 {[%emt 0:02:58]} Rxh4 {[%emt 0:00:09]} 25. h3 {[%emt 0:00:05]} Re4 {[%emt 0:00:14]} 26. Ra8 {[%emt 0:07:29]} a6 {[%emt 0:00:26]} 27. Ra7 {[%emt 0:03:25]} Re7 {[%emt 0:00:07][%cal Of5f4]} 28. Kc3 {[%emt 0:02:45]} (28. a4 $11 {is more appropriate.}) 28... h5 {[%emt 0:02:11]} (28... f4 $5 29. exf4 h5 $15) 29. Kb4 {[%emt 0:21:23]} (29. a4 $15) 29... h4 {[%emt 0:00:38]} (29... f4 $17 30. Ka5 h4) 30. a4 {[%emt 0:02:35]} (30. Kc3 $15) 30... f4 $1 $19 {[%emt 0:03:17][%cal Bf5f4,Bf4f3,Bf3f2][%mdl 32]} 31. a5 {[%emt 0:02:24]} Bh1 $2 {[%emt 0:00:39]} ({Inferior is} 31... fxe3 32. fxe3 Be4 33. Kc5 $17) (31... c5+ $1 $19 32. Kxc5 Rc7+ 33. Kd6 Rc6+ 34. Kd7 Rc1 35. Bxa6 bxa6 36. Rxa6+ Kg7) 32. Kc5 $1 $11 {[%emt 0:02:38]} f3 {[%emt 0:02:31] Strongly threatening ...Bg2.} (32... fxe3 33. fxe3 Be4 34. Kb6) 33. Ra8 {[%emt 0:00:11] aiming for Rg8.} Kg7 {[%emt 0:07:16] Against Rg8+} 34. Bd3 $2 {[%emt 0:03:22][%mdl 8192] This costs White the game.} (34. Ra7 $1 $11 {and White stays safe.}) 34... Bg2 $19 {[%emt 0:07:11] Black is clearly winning.} 35. Bf5 {[%emt 0:00:37] [#]} Rxe3 $3 {[%emt 0:00:41][%mdl 512]} 36. fxe3 {[%emt 0:00:01]} f2 {[%emt 0:00:08]} 37. Bd3 {[%emt 0:00:04]} Bxh3 {[%emt 0:00:05]} 38. Re8 {[%emt 0:02:28] [#]} Bf5 $1 {[%emt 0:00:50]} 39. e4 {[%emt 0:04:01]} (39. Bf1 $142 h3 40. Re5) 39... dxe4 {[%emt 0:01:06] Weighted Error Value: White=0.44/Black=0.09 (flawless)} 0-1